bitfinex-derivatives/quotes_ETHF0:USTF0_20240904
["timestamp","ask_amount","ask_price","bid_price","bid_amount"]
[1725417424958,3.2078,2363.9,2363.6,0.42313]
[1725417425137,3.2078,2363.9,2363.5,0.42315]
[1725417425337,3.21414156,2363.9,2363.5,0.42949156]
[1725417425835,3.21414156,2363.9,2363.6,0.42314]
[1725417426440,3.21414156,2363.9,2363.5,0.00634156]
[1725417426441,3.63724156,2363.9,2363.5,0.00634156]
[1725417426644,3.63094,2363.6,2363.5,0.00634156]
[1725417427151,13.86214,2363.6,2363.5,0.00634156]
[1725417427644,7.86214,2363.6,2363.5,0.00634156]
[1725417427844,7.439,2363.6,2363.5,0.00634156]
[1725417428046,3.2078,2363.6,2363.5,0.00634156]
[1725417428638,3.21414156,2363.9,2363.6,0.42313]
[1725417429044,3.21414156,2363.9,2363.7,0.42312]
[1725417429236,3.21414156,2363.9,2363.5,0.00634156]
[1725417429237,3.21414156,2363.9,2363.6,1.19073]
[1725417429540,3.63724156,2363.9,2363.6,0.7676]
[1725417429949,0.42312,2363.7,2363.6,0.7676]
[1725417430149,0.42314,2363.6,2363.5,0.00634156]
[1725417430448,3.2078,2363.6,2363.5,0.00634156]
[1725417430637,7.86214,2363.6,2363.5,0.00634156]
[1725417431440,13.86214,2363.6,2363.5,0.00634156]
[1725417431840,14.92,2363.6,2363.5,0.00634156]
[1725417432036,13.86214,2363.6,2363.5,0.00634156]
[1725417432338,7.439,2363.6,2363.5,0.00634156]
[1725417432540,7.86214,2363.6,2363.5,0.00634156]
[1725417433737,0.42321,2363.3,2362.9,1.15896]
[1725417433942,3.2078,2363.2,2362.9,0.7357]
[1725417434142,3.2078,2363.2,2362.9,1.15896]
[1725417434949,3.2078,2363.2,2363.0,0.42325]
[1725417435245,7.74795,2363.6,2362.9,0.7357]
[1725417435443,7.74795,2363.6,2363.2,0.42321]
[1725417435746,3.631,2363.3,2362.9,1.15895]
[1725417436641,3.631,2363.3,2363.0,0.42324]
[1725417436642,3.2078,2363.3,2363.0,0.42324]
[1725417436850,7.3248,2363.6,2362.9,0.7357]
[1725417437249,7.74795,2363.6,2362.9,0.7357]
[1725417437451,7.74795,2363.6,2363.3,0.4232]
[1725417437847,7.3248,2363.6,2362.9,0.7357]
[1725417438151,0.42316,2363.5,2363.2,0.4232]
[1725417438351,7.3248,2363.6,2362.9,0.7357]
[1725417438747,7.3248,2363.6,2363.0,3.9]
[1725417438949,4.117,2363.6,2363.5,0.42316]
[1725417439144,3.21414156,2363.9,2363.8,0.42311]
[1725417439145,0.00634156,2363.9,2363.8,0.42311]
[1725417439957,0.00634156,2363.9,2363.6,0.3751]
[1725417440154,0.00634156,2363.9,2363.7,0.42312]
[1725417440748,0.00634156,2363.9,2363.6,0.79824]
[1725417441253,0.00634156,2363.9,2363.7,0.42312]
[1725417441553,0.00634156,2363.9,2363.8,0.42311]
[1725417442455,0.00634156,2363.9,2363.8,4.65351]
[1725417442946,0.00634156,2363.9,2363.6,3.5829]
[1725417443352,0.00634156,2363.9,2363.6,4.00603]
[1725417443553,0.00634156,2363.9,2363.7,0.42312]
[1725417444047,0.00634156,2363.9,2363.6,4.00603]
[1725417444454,0.00634156,2363.9,2363.7,0.42311]
[1725417444644,0.00634156,2363.9,2363.8,0.42311]
[1725417445451,0.00634156,2363.9,2363.8,4.65351]
[1725417445650,0.00634156,2363.9,2363.8,14.55351]
[1725417446846,3.2078,2364.4,2363.8,14.1304]
[1725417447149,3.6,2364.7,2364.5,0.42298]
[1725417447745,3.6,2364.7,2364.1,0.7736]
[1725417447746,4.02295,2364.7,2364.4,0.42299]
[1725417449147,3.2078,2364.6,2364.5,0.42298]
[1725417449553,0.00634156,2364.8,2364.6,0.42295]
[1725417451051,0.42927156,2364.8,2364.5,0.42297]
[1725417451657,0.42297,2364.6,2364.3,0.42935156]
[1725417451855,4.02516,2364.7,2364.4,0.423]
[1725417452360,4.02516,2364.7,2364.5,0.42298]
[1725417452361,3.2078,2364.7,2364.5,0.42298]
[1725417452745,3.63075,2364.7,2364.5,0.42298]
[1725417453353,3.2078,2364.7,2364.5,0.42298]
[1725417453563,0.42928156,2364.8,2364.5,0.42298]
[1725417453757,0.42928156,2364.8,2364.4,0.42299]
[1725417453758,0.42295,2364.7,2364.4,0.42299]
[1725417453958,3.63075,2364.7,2364.4,0.42299]
[1725417454562,3.2078,2364.7,2364.5,0.42298]
[1725417454970,0.423,2364.5,2364.3,0.00634156]
[1725417455455,0.42297,2364.6,2364.3,0.42935156]
[1725417457262,3.63076,2364.7,2364.4,0.423]
[1725417457868,0.00634156,2364.8,2364.3,0.00634156]
[1725417458259,0.42928156,2364.8,2364.6,0.42296]
[1725417458565,0.42928156,2364.8,2364.5,0.42297]
[1725417458959,0.42928156,2364.8,2364.6,0.42296]
[1725417459160,0.00634156,2364.8,2364.6,0.42296]
[1725417459355,0.00634156,2364.8,2364.3,0.00634156]
[1725417459557,3.2078,2364.7,2364.5,0.42297]
[1725417460257,3.2078,2364.7,2364.6,0.42296]
[1725417460458,0.00634156,2364.8,2364.6,0.42296]
[1725417460658,0.00634156,2364.8,2364.7,0.7782]
[1725417461462,0.42927156,2364.8,2364.7,0.7782]
[1725417462164,0.42927156,2364.8,2364.7,14.34995]
[1725417462165,0.00634156,2364.8,2364.7,14.34995]
[1725417462365,3.5976,2365.4,2365.2,0.42285]
[1725417462566,4.117,2365.6,2365.3,0.42284]
[1725417462865,3.63056,2365.8,2365.4,0.42282]
[1725417463176,3.63056,2365.8,2365.3,0.7715]
[1725417463177,3.63056,2365.8,2365.3,1.19433]
[1725417463473,3.21414156,2365.8,2365.3,0.7715]
[1725417463656,0.42278,2365.7,2365.3,1.19434]
[1725417463861,0.42278,2365.7,2365.3,0.7715]
[1725417464060,0.42278,2365.7,2365.3,1.19434]
[1725417464765,0.42279,2365.6,2365.3,0.7715]
[1725417466070,3.2078,2365.7,2365.3,1.19433]
[1725417466369,3.63057,2365.7,2365.3,1.19433]
[1725417467264,3.2078,2365.7,2365.4,0.42282]
[1725417467565,3.2078,2365.7,2365.5,0.42279]
[1725417469070,3.63058,2365.7,2365.3,1.19433]
[1725417469475,3.63058,2365.7,2365.3,0.388]
[1725417469476,0.42278,2365.6,2365.3,0.388]
[1725417469661,0.4228,2365.5,2365.3,0.388]
[1725417470060,3.2078,2365.7,2365.3,0.388]
[1725417470061,0.4228,2365.6,2365.3,0.388]
[1725417470262,0.4228,2365.6,2365.3,0.81084]
[1725417470567,0.4228,2365.6,2365.3,0.388]
[1725417470764,0.42281,2365.5,2365.3,0.388]
[1725417471063,0.42279,2365.6,2365.3,0.388]
[1725417471774,0.4228,2365.5,2365.3,0.388]
[1725417471962,0.42279,2365.6,2365.3,0.388]
[1725417472272,0.42279,2365.6,2365.3,0.81084]
[1725417472670,0.00634156,2365.8,2365.3,0.81084]
[1725417472671,0.00634156,2365.8,2365.7,0.42277]
[1725417473170,0.00634156,2365.8,2365.7,4.64997]
[1725417475676,0.3953,2366.4,2365.7,13.435]
[1725417475872,0.3953,2366.4,2365.9,0.42273]
[1725417476066,0.7747,2366.4,2365.8,0.79064]
[1725417476375,0.42269,2366.2,2365.8,0.79064]
[1725417476673,0.42903156,2366.2,2365.8,0.79064]
[1725417476875,0.00634156,2366.2,2365.9,0.42272]
[1725417477183,0.00634156,2366.2,2365.9,0.79412]
[1725417477366,0.4227,2366.1,2365.9,0.3714]
[1725417477561,0.42903156,2366.2,2365.8,0.79065]
[1725417478764,0.00634156,2366.2,2365.8,0.79065]
[1725417478967,0.42902156,2366.2,2365.8,0.79065]
[1725417481181,0.00634156,2366.2,2365.7,3.2078]
[1725417481482,0.42902156,2366.2,2365.8,0.42274]
[1725417481772,0.4227,2366.1,2365.8,0.42275]
[1725417481979,0.42903156,2366.2,2365.8,0.42275]
[1725417482170,0.42903156,2366.2,2365.9,0.42273]
[1725417482365,0.00634156,2366.2,2365.7,3.6055]
[1725417482670,0.00634156,2366.2,2366.0,0.4227]
[1725417483470,0.00634156,2366.2,2365.8,4.2857]
[1725417483778,0.00634156,2366.2,2366.1,0.42269]
[1725417485779,0.00634156,2366.2,2366.1,8.54909]
[1725417486082,1.02976,2366.9,2366.5,0.42262]
[1725417486273,0.81776,2366.9,2366.5,0.42262]
[1725417486767,7.3248,2367.0,2366.7,2.92]
[1725417486969,7.3248,2367.0,2366.7,3.34258]
[1725417487169,3.2078,2367.0,2366.7,2.92]
[1725417487370,0.3754,2367.2,2366.9,2.92]
[1725417487567,0.3754,2367.2,2367.1,2.92]
[1725417487781,7.6994,2367.4,2367.1,2.92]
[1725417488079,8.12186,2367.4,2367.1,2.92]
[1725417488284,7.6994,2367.4,2367.1,2.92]
[1725417489381,0.42248,2367.3,2367.1,2.92]
[1725417489876,0.42248,2367.3,2366.9,3.34254]
[1725417490081,0.4225,2367.2,2366.9,2.92]
[1725417490276,7.6994,2367.4,2366.8,1.21290156]
[1725417490277,3.63032,2367.1,2366.8,0.00634156]
[1725417490480,0.81914,2367.0,2366.8,0.00634156]
[1725417490677,0.3966,2367.0,2366.8,0.00634156]
[1725417491283,0.42255,2366.9,2366.8,0.00634156]
[1725417492171,0.3966,2367.0,2366.8,0.00634156]
[1725417492376,0.81914,2367.0,2366.8,0.37594156]
[1725417492576,0.3966,2367.0,2366.8,0.37594156]
[1725417492777,0.81914,2367.0,2366.8,0.37594156]
[1725417493285,0.3966,2367.0,2366.8,0.37594156]
[1725417493882,0.81914,2367.0,2366.8,0.37594156]
[1725417494578,3.2078,2367.1,2366.8,0.37594156]
[1725417494971,3.63033,2367.1,2366.8,0.37594156]
[1725417495175,0.42254,2367.0,2366.8,0.37594156]
[1725417495778,3.63033,2367.1,2366.8,0.37594156]
[1725417496086,0.42253,2367.1,2366.8,1.18441156]
[1725417497178,0.80481,2367.2,2366.9,2.92]
[1725417497374,7.6994,2367.4,2366.9,2.92]
[1725417497576,8.0863,2367.4,2367.2,2.92]
[1725417497786,7.7117,2367.4,2367.2,3.34249]
[1725417497985,8.13416,2367.4,2367.2,2.92]
[1725417498183,0.42248,2367.3,2367.2,2.92]
[1725417498781,8.13417,2367.4,2367.2,2.92]
[1725417498987,4.01717,2367.4,2367.2,2.92]
[1725417499678,0.42248,2367.3,2367.2,2.92]
[1725417501084,4.01717,2367.4,2367.2,2.92]
[1725417501280,3.5947,2367.4,2367.2,2.92]
[1725417501485,4.01716,2367.4,2367.2,2.92]
[1725417502081,0.42248,2367.3,2367.2,2.92]
[1725417504093,3.63027,2367.4,2367.2,2.92]
[1725417504289,0.42247,2367.4,2367.3,0.3977]
[1725417504583,0.42247,2367.4,2366.8,0.39224156]
[1725417504584,5.28021,2367.3,2366.8,0.39224156]
[1725417504789,3.2078,2367.1,2366.8,0.39224156]
[1725417505084,0.42252,2367.1,2366.8,0.81480156]
[1725417505291,1.0561,2367.6,2366.8,0.81480156]
[1725417505292,3.32791226,2367.7,2367.0,2.92]
[1725417505483,0.42244,2367.6,2367.3,2.92]
[1725417505786,0.42243,2367.6,2367.3,2.92]
[1725417506186,0.42244,2367.5,2367.3,3.2912]
[1725417506382,3.5899,2367.7,2367.3,3.2912]
[1725417506587,0.42244,2367.6,2367.3,3.2912]
[1725417507187,0.42244,2367.5,2367.3,3.2912]
[1725417507883,0.42246,2367.4,2367.3,3.2912]
[1725417508084,0.42246,2367.4,2367.3,2.92]
[1725417508286,0.42246,2367.4,2367.1,3.6875]
[1725417508490,0.42245,2367.5,2367.1,4.11001]
[1725417510789,0.42245,2367.5,2367.2,0.4225]
[1725417511384,0.42244,2367.6,2367.3,2.92]
[1725417511792,3.5899,2367.7,2367.3,2.92]
[1725417511793,0.42245,2367.5,2367.3,2.92]
[1725417512386,0.42244,2367.6,2367.3,2.92]
[1725417512884,3.5899,2367.7,2367.3,2.92]
[1725417512885,0.42245,2367.5,2367.3,2.92]
[1725417513590,0.42244,2367.6,2367.3,3.34248]
[1725417513793,3.5899,2367.7,2367.4,0.42246]
[1725417514090,4.01231,2367.7,2367.4,0.81056]
[1725417514295,4.01231,2367.7,2367.4,0.3881]
[1725417514495,0.42243,2367.6,2367.4,0.3881]
[1725417515291,3.5899,2367.7,2367.1,4.11001]
[1725417515292,0.42246,2367.4,2367.1,4.11001]
[1725417515496,0.81266,2367.5,2367.1,4.11001]
[1725417515689,0.42246,2367.4,2367.1,4.11001]
[1725417516793,0.42246,2367.4,2367.1,3.74011]
[1725417518201,0.81266,2367.5,2367.2,0.4225]
[1725417518397,4.7674562,2367.7,2367.4,0.42246]
[1725417518398,4.01232,2367.7,2367.4,0.42246]
[1725417518599,0.42243,2367.6,2367.3,3.34247]
[1725417518895,3.2078,2367.7,2367.3,2.92]
[1725417519103,3.2078,2367.7,2367.4,0.78315]
[1725417519703,3.63021,2367.7,2367.5,0.42244]
[1725417519906,3.2078,2368.0,2367.8,0.42238]
[1725417520198,3.2078,2368.0,2367.9,0.3607]
[1725417521304,0.42227,2368.5,2368.1,0.42233]
[1725417521607,0.42227,2368.5,2368.2,3.3032]
[1725417521797,3.5941,2368.7,2368.2,3.3032]
[1725417521798,0.42225,2368.6,2368.4,2.92]
[1725417522199,3.5941,2368.7,2368.2,3.3032]
[1725417522395,3.71095918,2368.7,2368.2,3.3032]
[1725417522699,0.42229,2368.4,2368.2,2.92]
[1725417523403,0.42228,2368.5,2368.2,2.92]
[1725417523902,0.42229,2368.4,2368.2,2.92]
[1725417525001,3.2078,2368.4,2368.1,0.00634156]
[1725417525201,0.42232,2368.2,2368.1,0.00634156]
[1725417525596,4.64472,2368.2,2368.1,0.00634156]
[1725417525999,5.03222,2368.2,2368.1,0.00634156]
[1725417528010,12.08803,2368.2,2368.1,0.00634156]
[1725417528811,0.80982,2368.2,2368.1,0.00634156]
[1725417529011,5.03222,2368.2,2368.1,0.00634156]
[1725417529202,2.92,2368.6,2368.1,0.00634156]
[1725417529203,3.2078,2368.7,2368.1,0.00634156]
[1725417529409,3.2078,2368.7,2368.2,2.92]
[1725417529410,0.4223,2368.4,2368.2,2.92]
[1725417529908,0.4223,2368.3,2368.1,0.36564156]
[1725417530104,3.2078,2368.4,2368.1,0.36564156]
[1725417530305,0.42232,2368.2,2368.1,0.36564156]
[1725417530507,0.42232,2368.2,2368.1,0.00634156]
[1725417530703,4.64472,2368.2,2368.1,0.00634156]
[1725417532307,11.70053,2368.2,2368.1,0.00634156]
[1725417532601,12.09803,2368.2,2368.1,0.00634156]
[1725417533207,0.42241,2367.7,2367.6,2.92]
[1725417533903,0.4224,2367.8,2367.6,2.92]
[1725417534108,0.42872156,2367.9,2367.6,2.92]
[1725417534710,0.42872156,2367.9,2367.6,3.34242]
[1725417535104,0.42872156,2367.9,2367.5,0.78214156]
[1725417535105,0.00634156,2367.9,2367.8,2.92]
[1725417535416,0.00634156,2367.9,2367.8,3.2802]
[1725417536808,0.00634156,2367.9,2367.8,3.70259]
[1725417537608,0.00634156,2367.9,2367.8,3.2802]
[1725417540006,0.00634156,2367.9,2367.5,0.38814156]
[1725417540007,4.22954156,2367.9,2367.5,0.38814156]
[1725417540203,0.37454156,2367.9,2367.6,2.92]
[1725417540407,0.00634156,2367.9,2367.8,3.34239]
[1725417541001,0.00634156,2367.9,2367.8,7.56559]
[1725417544006,3.2078,2368.6,2367.9,1.05594]
[1725417544220,0.3718,2368.8,2368.4,0.42227]
[1725417544409,0.3718,2368.8,2368.5,0.399]
[1725417544609,0.42224,2368.7,2368.5,0.399]
[1725417545116,3.63003,2368.7,2368.5,0.399]
[1725417546303,0.42225,2368.6,2368.5,0.399]
[1725417546507,3.63004,2368.7,2368.5,0.399]
[1725417547221,0.42225,2368.6,2368.5,0.399]
[1725417547718,0.42227,2368.5,2368.4,0.3981]
[1725417547914,3.2078,2368.7,2368.1,3.2852]
[1725417548108,4.26342,2368.7,2368.1,3.6833]
[1725417548611,0.42231,2368.3,2368.1,3.6833]
[1725417549627,0.42232,2368.2,2368.1,3.6833]
[1725417549816,0.42232,2368.2,2368.1,0.7633]
[1725417555010,0.42236,2368.0,2367.9,2.92]
[1725417555322,0.42239,2367.8,2367.7,4.0332]
[1725417555616,0.42243,2367.6,2367.5,2.92634156]
[1725417556211,0.42243,2367.6,2367.5,0.00634156]
[1725417556621,0.80112,2367.7,2367.5,2.92634156]
[1725417556919,0.42242,2367.7,2367.5,2.92634156]
[1725417557118,3.2078,2367.8,2367.5,2.92634156]
[1725417557322,0.42239,2367.8,2367.7,2.92]
[1725417557527,0.42243,2367.6,2367.5,2.92634156]
[1725417557718,0.42243,2367.6,2367.5,0.00634156]
[1725417558026,8.9103,2367.6,2367.5,0.00634156]
[1725417559031,9.6681,2367.6,2367.5,0.00634156]
[1725417560021,5.4441,2367.6,2367.5,0.00634156]
[1725417560221,9.6681,2367.6,2367.5,0.00634156]
[1725417560523,4.38803,2367.6,2367.5,0.00634156]
[1725417561622,3.2078,2367.6,2367.5,0.00634156]
[1725417562024,3.63023,2367.6,2367.5,0.00634156]
[1725417562422,8.9103,2367.6,2367.5,0.00634156]
[1725417562628,1.47862,2367.4,2367.3,1.10361714]
[1725417563227,4.64646,2367.4,2367.3,1.10361714]
[1725417563622,0.3728,2367.5,2367.3,1.10361714]
[1725417563928,3.63023,2367.6,2367.3,4.41181714]
[1725417564230,3.2078,2367.6,2367.3,4.41181714]
[1725417564924,3.63024,2367.6,2367.3,4.41181714]
[1725417566425,3.2078,2367.6,2367.3,4.41181714]
[1725417566928,3.63024,2367.6,2367.3,4.41181714]
[1725417567128,3.63024,2367.6,2367.3,3.3082]
[1725417568125,0.42245,2367.5,2367.3,3.3082]
[1725417568729,3.63025,2367.5,2367.3,3.3082]
[1725417568930,0.42248,2367.4,2367.2,0.3975]
[1725417569134,0.80808,2367.4,2367.2,0.3975]
[1725417569430,0.42248,2367.3,2367.2,0.3975]
[1725417569828,0.3856,2367.4,2367.1,2.92634156]
[1725417569829,0.4225,2367.2,2367.1,2.92634156]
[1725417570425,3.6303,2367.2,2367.1,0.00634156]
[1725417570827,0.42249,2367.3,2367.1,0.00634156]
[1725417571132,0.4225,2367.2,2367.1,0.00634156]
[1725417571635,7.8551,2367.2,2367.1,0.00634156]
[1725417573928,7.8551,2367.2,2367.1,2.92634156]
[1725417573929,3.2078,2367.2,2367.1,2.92634156]
[1725417574123,1.17668,2367.4,2367.1,2.92634156]
[1725417575137,1.17668,2367.4,2367.2,0.3857]
[1725417575138,0.42248,2367.3,2367.2,0.3857]
[1725417575632,0.80806,2367.4,2367.2,0.3857]
[1725417576135,3.2078,2367.5,2367.2,0.8082]
[1725417576345,3.2078,2367.5,2367.3,3.3148]
[1725417576538,3.2078,2367.5,2367.4,0.3728]
[1725417576840,7.4318,2367.5,2367.4,0.3728]
[1725417577030,3.2078,2367.5,2367.4,0.3728]
[1725417577339,7.4318,2367.5,2367.4,0.3728]
[1725417577540,4.224,2367.5,2367.4,0.3728]
[1725417577836,7.4318,2367.5,2367.4,0.3728]
[1725417578825,7.4318,2367.5,2367.1,0.00634156]
[1725417579029,3.6303,2367.2,2367.1,0.00634156]
[1725417579434,8.91135,2367.2,2367.1,0.00634156]
[1725417579641,14.91135,2367.2,2367.1,0.00634156]
[1725417581743,15.03021652,2367.2,2367.1,0.00634156]
[1725417581939,0.42258,2366.8,2366.6,0.7681]
[1725417582131,3.63039,2366.7,2366.6,0.7681]
[1725417582740,0.42258,2366.8,2366.6,0.7681]
[1725417583438,3.63033,2367.0,2366.7,2.92]
[1725417583643,3.63033,2367.0,2366.7,3.2984]
[1725417583946,0.42253,2367.0,2366.7,3.2984]
[1725417584445,3.2078,2367.0,2366.7,3.2984]
[1725417584635,3.63034,2367.0,2366.7,3.2984]
[1725417585445,3.2078,2367.0,2366.7,3.2984]
[1725417585747,3.63033,2367.0,2366.7,3.2984]
[1725417586140,3.2078,2367.0,2366.9,3.34255]
[1725417586446,4.117,2367.2,2366.9,2.92]
[1725417586642,4.117,2367.2,2367.0,0.3595]
[1725417586945,4.117,2367.2,2367.1,0.3811]
[1725417587147,3.63029,2367.3,2367.1,0.3811]
[1725417588547,0.4225,2367.2,2367.1,0.3811]
[1725417591046,0.42252,2367.1,2367.0,0.3595]
[1725417591247,0.42255,2366.9,2366.8,0.3724]
[1725417591452,0.42259,2366.7,2366.6,0.3665]
[1725417591749,3.2078,2366.9,2366.6,0.7389]
[1725417592145,0.42258,2366.8,2366.6,0.7389]
[1725417592345,3.63036,2366.9,2366.6,0.7389]
[1725417592757,3.2078,2366.9,2366.6,1.1332]
[1725417593753,3.2078,2366.9,2366.6,1.5558]
[1725417594157,0.42254,2367.0,2366.6,1.5558]
[1725417595349,0.42255,2366.9,2366.6,1.1332]
[1725417595652,3.63036,2366.9,2366.6,0.7389]
[1725417596043,4.117,2367.1,2367.0,0.42253]
[1725417596243,4.117,2367.1,2367.0,3.34253]
[1725417597151,0.42247,2367.4,2367.0,3.34253]
[1725417597352,0.42247,2367.4,2367.1,1.1317]
[1725417598359,3.63026,2367.5,2367.1,1.1317]
[1725417598963,0.42246,2367.4,2367.1,1.1317]
[1725417599257,3.63025,2367.5,2367.1,1.1317]
[1725417599766,3.63025,2367.5,2367.1,1.55421]
[1725417600261,0.42246,2367.4,2367.1,0.7611]
[1725417600462,3.2078,2367.5,2367.1,0.7611]
[1725417600463,0.42249,2367.3,2367.1,0.7611]
[1725417600765,3.63025,2367.5,2367.1,0.7611]
[1725417600972,3.2078,2367.5,2367.2,0.387]
[1725417601265,0.42246,2367.4,2367.2,0.387]
[1725417601474,0.42246,2367.4,2367.1,0.7611]
[1725417601858,0.42249,2367.3,2367.1,0.7611]
[1725417602054,0.42247,2367.4,2367.1,0.7611]
[1725417602260,3.2078,2367.5,2367.1,0.7611]
[1725417602466,3.2078,2367.5,2367.1,1.1836]
[1725417603060,3.2078,2367.5,2367.1,1.18361]
[1725417603257,3.2078,2367.5,2367.1,1.1836]
[1725417603555,3.2078,2367.5,2367.1,0.7611]
[1725417603556,3.63025,2367.5,2367.1,0.7611]
[1725417603958,3.2078,2367.5,2367.1,0.7611]
[1725417604164,3.2078,2367.5,2367.2,0.4225]
[1725417604666,3.63025,2367.5,2367.1,1.18361]
[1725417604867,3.63025,2367.5,2367.2,0.4225]
[1725417606371,3.63025,2367.5,2367.1,1.1836]
[1725417607068,0.42246,2367.4,2367.1,1.1836]
[1725417607272,0.42246,2367.4,2367.1,1.18361]
[1725417607476,0.42246,2367.4,2367.1,0.7611]
[1725417607673,0.42247,2367.4,2367.1,0.7611]
[1725417608168,0.4225,2367.2,2366.9,3.5853]
[1725417608374,0.42252,2367.1,2366.9,0.3775]
[1725417608565,3.2078,2367.2,2366.8,0.755]
[1725417608770,3.2078,2366.9,2366.5,0.81476156]
[1725417608974,7.74731,2367.2,2366.6,3.675]
[1725417609171,7.3248,2367.2,2366.8,2.92]
[1725417609362,7.7473,2367.2,2366.9,0.42255]
[1725417609667,7.7473,2367.2,2366.6,4.0976]
[1725417609668,0.42254,2367.0,2366.6,4.0976]
[1725417610268,0.42253,2367.1,2366.7,0.42259]
[1725417610568,7.3248,2367.2,2366.6,3.675]
[1725417610769,0.42252,2367.1,2366.7,0.42258]
[1725417612375,0.42254,2367.0,2366.6,7.30539]
[1725417612678,7.3248,2367.2,2366.6,6.8828]
[1725417612866,3.2078,2366.9,2366.6,0.755]
[1725417613072,3.63036,2366.9,2366.6,0.755]
[1725417613777,0.42254,2367.0,2366.6,1.1776]
[1725417614276,0.42255,2366.9,2366.6,0.755]
[1725417614474,7.74731,2367.2,2366.8,0.42256]
[1725417614676,0.42252,2367.1,2366.8,3.34256]
[1725417614868,7.3248,2367.2,2366.8,2.92]
[1725417615279,0.42252,2367.1,2366.8,3.34257]
[1725417616366,7.3248,2367.2,2366.8,2.92]
[1725417616568,7.7473,2367.2,2366.8,3.34256]
[1725417617977,3.6303,2367.2,2366.8,3.34256]
[1725417618171,3.6303,2367.2,2366.8,2.92]
[1725417618870,3.63031,2367.2,2366.8,3.34257]
[1725417619068,6.82,2367.4,2366.8,2.92]
[1725417619279,7.74725,2367.5,2367.1,0.42251]
[1725417619481,1.05617,2367.4,2366.7,3.2078]
[1725417619672,7.3248,2367.5,2366.7,3.2078]
[1725417619673,10.2448,2367.5,2366.7,3.2078]
[1725417619873,4.26405,2367.2,2366.6,0.755]
[1725417620070,0.42254,2367.0,2366.6,0.755]
[1725417620279,3.2078,2366.9,2366.6,1.1776]
[1725417620471,3.2078,2366.9,2366.6,0.755]
[1725417620674,3.63035,2366.9,2366.6,0.755]
[1725417621368,3.63035,2366.9,2366.5,0.81476156]
[1725417621369,3.2078,2366.9,2366.5,0.00634156]
[1725417621567,0.759,2366.8,2366.5,0.00634156]
[1725417621874,0.3652,2366.8,2366.5,0.38194156]
[1725417622071,0.3652,2366.8,2366.6,0.3695]
[1725417622672,0.78777,2366.8,2366.6,0.3695]
[1725417623075,0.3652,2366.8,2366.6,0.3695]
[1725417623281,0.78777,2366.8,2366.6,0.3695]
[1725417625080,0.3652,2366.8,2366.6,0.3695]
[1725417625279,0.78777,2366.8,2366.6,0.3695]
[1725417625780,0.7782,2367.1,2366.7,0.42258]
[1725417626075,7.3248,2367.2,2366.8,2.92]
[1725417626076,4.117,2367.2,2366.8,2.92]
[1725417626276,4.117,2367.2,2366.9,0.80054]
[1725417626481,4.117,2367.2,2367.0,0.42253]
[1725417626689,4.117,2367.2,2366.9,0.80054]
[1725417627377,4.5395,2367.2,2366.9,0.378]
[1725417627577,4.117,2367.2,2366.9,0.378]
[1725417627784,4.117,2367.2,2366.9,0.80054]
[1725417627976,4.5395,2367.2,2366.9,0.378]
[1725417628181,4.117,2367.2,2366.9,0.80055]
[1725417628987,4.53951,2367.2,2366.9,0.378]
[1725417629286,4.117,2367.2,2366.9,0.80055]
[1725417629677,4.5395,2367.2,2366.9,0.80055]
[1725417629877,0.4225,2367.2,2366.9,0.80055]
[1725417630885,0.42252,2367.1,2366.8,2.92]
[1725417631083,0.81512,2367.1,2366.8,2.92]
[1725417631284,0.81134,2367.0,2366.8,2.92]
[1725417631584,0.3888,2367.0,2366.8,2.92]
[1725417631789,0.3888,2367.0,2366.7,0.42258]
[1725417632091,0.3888,2367.0,2366.6,4.4779]
[1725417632286,0.42255,2366.9,2366.6,4.4779]
[1725417632789,0.42255,2366.9,2366.6,4.0553]
[1725417632990,3.63035,2366.9,2366.6,4.0553]
[1725417633882,0.3888,2367.0,2366.6,4.0553]
[1725417634082,0.81512,2367.1,2366.7,0.42259]
[1725417634388,3.2078,2367.2,2366.7,0.42259]
[1725417634584,0.42253,2367.1,2366.7,0.42259]
[1725417635185,0.42253,2367.1,2366.6,4.0553]
[1725417635186,3.2078,2367.2,2366.8,0.42256]
[1725417635384,0.42252,2367.1,2366.7,0.42258]
[1725417635589,0.42252,2367.1,2366.6,4.0553]
[1725417635785,0.42252,2367.1,2366.7,0.42259]
[1725417635984,0.42252,2367.1,2366.8,0.42257]
[1725417636191,3.63031,2367.2,2366.8,0.42256]
[1725417636583,1.05626,2367.2,2366.6,4.0553]
[1725417636793,0.42256,2366.9,2366.6,4.0553]
[1725417636995,4.26406,2367.2,2366.6,4.0553]
[1725417637192,0.42256,2366.9,2366.6,4.0553]
[1725417637490,0.42256,2366.9,2366.6,4.4779]
[1725417637690,0.42256,2366.9,2366.6,4.0553]
[1725417637895,0.80754,2367.0,2366.6,4.4779]
[1725417638990,0.80754,2367.0,2366.6,4.0553]
[1725417638991,0.42256,2366.9,2366.6,4.0553]
[1725417639290,0.42255,2366.9,2366.6,4.0553]
[1725417639684,0.80754,2367.0,2366.6,4.4779]
[1725417640996,0.42253,2367.1,2366.7,0.42258]
[1725417641197,0.42249,2367.3,2366.9,0.42255]
[1725417641394,0.42249,2367.3,2367.0,0.3741]
[1725417641694,0.42249,2367.3,2367.1,0.3707]
[1725417642302,0.4225,2367.2,2367.1,0.3707]
[1725417642597,3.2078,2367.2,2367.0,0.3741]
[1725417642792,0.3648,2367.4,2367.0,0.3741]